[Event "Titled Tuesday Blitz November 15 Late 2022"]
[White "Annaberdiyev, Babageldi"]
[Black "Radovanovic, Dusan"]
[WhiteFideId "14000385"]
[BlackFideId "926868"]
[WhiteElo "2332"]
[BlackElo "2341"]
[Result "1-0"]
[Round "11"]
[TimeControl "180+1"]
[Date "2022.11.16"]
[WhiteClock "0:00:44"]
[BlackClock "0:00:53"]

1. e4 {[%clk 0:03:00]}  c5 {[%clk 0:02:59]} 2. Nf3 {[%clk 0:03:00]}  d6 {[%clk 0:02:59]} 3. d4 {[%clk 0:02:58]}  cxd4 {[%clk 0:03:00]} 4. Nxd4 {[%clk 0:02:52]}  Nf6 {[%clk 0:03:00]} 5. Nc3 {[%clk 0:02:52]}  g6 {[%clk 0:03:00]} 6. Be3 {[%clk 0:02:50]}  Bg7 {[%clk 0:03:00]} 7. f3 {[%clk 0:02:50]}  O-O {[%clk 0:03:00]} 8. Qd2 {[%clk 0:02:51]}  Nc6 {[%clk 0:03:01]} 9. Bc4 {[%clk 0:02:51]}  Bd7 {[%clk 0:03:01]} 10. O-O-O {[%clk 0:02:49]}  Rb8 {[%clk 0:03:01]} 11. h4 {[%clk 0:02:47]}  b5 {[%clk 0:03:00]} 12. Bb3 {[%clk 0:01:31]}  Nxd4 {[%clk 0:03:00]} 13. Bxd4 {[%clk 0:01:29]}  a5 {[%clk 0:03:00]} 14. e5 {[%clk 0:01:21]}  dxe5 {[%clk 0:02:34]} 15. Bxe5 {[%clk 0:01:22]}  Rb7 {[%clk 0:02:34]} 16. h5 {[%clk 0:01:13]}  a4 {[%clk 0:02:24]} 17. Bd5 {[%clk 0:01:12]}  Rb8 {[%clk 0:01:28]} 18. hxg6 {[%clk 0:01:09]}  hxg6 {[%clk 0:01:27]} 19. Qg5 {[%clk 0:01:08]}  b4 {[%clk 0:01:11]} 20. Qh4 {[%clk 0:01:00]}  Re8 {[%clk 0:01:07]} 21. Ne4 {[%clk 0:00:57]}  b3 {[%clk 0:00:59]} 22. Nxf6+ {[%clk 0:00:54]}  exf6 {[%clk 0:00:58]} 23. Qh7+ {[%clk 0:00:53]}  Kf8 {[%clk 0:00:58]} 24. Bd6+ {[%clk 0:00:51]}  Re7 {[%clk 0:00:58]} 25. Rde1 {[%clk 0:00:47]}  Be6 {[%clk 0:00:56]} 26. Rxe6 {[%clk 0:00:44]}  fxe6 {[%clk 0:00:54]} 27. Bxe6 {[%clk 0:00:44]}  Qxd6 {[%clk 0:00:53]} 28. Qg8# {[%clk 0:00:44]} 1-0


[Site "https://www.chess.com"]

[Event "Titled Tuesday Blitz November 15 Late 2022"]
[White "Arbunic Castro, Giovanna"]
[Black "Clawitter, Craig"]
[WhiteFideId "3400549"]
[BlackFideId "2023105"]
[WhiteElo "1963"]
[BlackElo "2233"]
[Result "1-0"]
[Round "11"]
[TimeControl "180+1"]
[Date "2022.11.16"]
[WhiteClock "0:01:27"]
[BlackClock "0:00:01"]

1. e4 {[%clk 0:03:00]}  e6 {[%clk 0:03:00]} 2. d4 {[%clk 0:02:59]}  d5 {[%clk 0:03:00]} 3. exd5 {[%clk 0:02:59]}  exd5 {[%clk 0:03:01]} 4. Nf3 {[%clk 0:02:59]}  Bd6 {[%clk 0:03:02]} 5. c4 {[%clk 0:02:59]}  Nf6 {[%clk 0:03:01]} 6. Nc3 {[%clk 0:02:58]}  O-O {[%clk 0:03:01]} 7. Bg5 {[%clk 0:02:58]}  Re8+ {[%clk 0:02:55]} 8. Be2 {[%clk 0:02:58]}  dxc4 {[%clk 0:02:46]} 9. O-O {[%clk 0:02:57]}  h6 {[%clk 0:02:42]} 10. Bh4 {[%clk 0:02:54]}  g5 {[%clk 0:02:19]} 11. Bg3 {[%clk 0:02:49]}  Nc6 {[%clk 0:02:17]} 12. Bxc4 {[%clk 0:02:42]}  Bg4 {[%clk 0:02:00]} 13. h3 {[%clk 0:02:37]}  Bxf3 {[%clk 0:01:53]} 14. Qxf3 {[%clk 0:02:35]}  Nxd4 {[%clk 0:01:48]} 15. Qxb7 {[%clk 0:02:33]}  Rb8 {[%clk 0:01:39]} 16. Qxa7 {[%clk 0:02:20]}  Nc6 {[%clk 0:00:55]} 17. Qa4 {[%clk 0:01:56]}  Bxg3 {[%clk 0:00:50]} 18. fxg3 {[%clk 0:01:51]}  Qd6 {[%clk 0:00:08]} 19. Bb5 {[%clk 0:01:38]}  Nd4 {[%clk 0:00:03]} 20. Bxe8 {[%clk 0:01:34]}  Rxe8 {[%clk 0:00:04]} 21. Rad1 {[%clk 0:01:32]}  Qxg3 {[%clk 0:00:01]} 22. Qxd4 {[%clk 0:01:27]} 1-0


[Site "https://www.chess.com"]

[Event "Titled Tuesday Blitz November 15 Late 2022"]
[White "Arnold, Ken"]
[Black "Forgacs, Attila Jr."]
[WhiteFideId "2056836"]
[BlackFideId "773654"]
[WhiteElo "2353"]
[BlackElo "2168"]
[Result "0-1"]
[Round "11"]
[TimeControl "180+1"]
[Date "2022.11.16"]
[WhiteClock "0:00:01"]
[BlackClock "0:00:07"]

1. d4 {[%clk 0:03:00]}  Nf6 {[%clk 0:03:00]} 2. c4 {[%clk 0:03:01]}  g6 {[%clk 0:02:59]} 3. Nc3 {[%clk 0:03:01]}  d5 {[%clk 0:02:59]} 4. Nf3 {[%clk 0:03:01]}  Bg7 {[%clk 0:02:59]} 5. Bf4 {[%clk 0:03:01]}  O-O {[%clk 0:02:56]} 6. e3 {[%clk 0:03:01]}  c5 {[%clk 0:02:57]} 7. Bxb8 {[%clk 0:02:47]}  Rxb8 {[%clk 0:02:56]} 8. cxd5 {[%clk 0:02:45]}  Nxd5 {[%clk 0:02:51]} 9. Bc4 {[%clk 0:02:45]}  Nxc3 {[%clk 0:02:50]} 10. bxc3 {[%clk 0:02:45]}  b5 {[%clk 0:02:47]} 11. Be2 {[%clk 0:02:44]}  b4 {[%clk 0:02:41]} 12. cxb4 {[%clk 0:02:34]}  cxb4 {[%clk 0:02:35]} 13. O-O {[%clk 0:02:32]}  a5 {[%clk 0:02:22]} 14. Bc4 {[%clk 0:02:24]}  Qb6 {[%clk 0:02:18]} 15. Qb3 {[%clk 0:02:08]}  Ba6 {[%clk 0:02:15]} 16. Rfc1 {[%clk 0:01:51]}  Bxc4 {[%clk 0:02:05]} 17. Rxc4 {[%clk 0:01:49]}  Rfc8 {[%clk 0:02:06]} 18. Rac1 {[%clk 0:01:25]}  Qa6 {[%clk 0:02:05]} 19. a3 {[%clk 0:00:43]}  bxa3 {[%clk 0:01:27]} 20. Rxc8+ {[%clk 0:00:40]}  Rxc8 {[%clk 0:01:27]} 21. Qxa3 {[%clk 0:00:36]}  e6 {[%clk 0:01:21]} 22. Rxc8+ {[%clk 0:00:25]}  Qxc8 {[%clk 0:01:21]} 23. Qxa5 {[%clk 0:00:25]}  Qc1+ {[%clk 0:01:20]} 24. Qe1 {[%clk 0:00:25]}  Qc4 {[%clk 0:01:16]} 25. h4 {[%clk 0:00:21]}  h5 {[%clk 0:01:15]} 26. g3 {[%clk 0:00:20]}  Bf8 {[%clk 0:01:14]} 27. Kg2 {[%clk 0:00:20]}  Bb4 {[%clk 0:01:10]} 28. Qd1 {[%clk 0:00:17]}  Kg7 {[%clk 0:01:06]} 29. e4 {[%clk 0:00:15]}  Bd6 {[%clk 0:00:56]} 30. Qd2 {[%clk 0:00:12]}  Bb4 {[%clk 0:00:55]} 31. Qe3 {[%clk 0:00:12]}  Bd6 {[%clk 0:00:52]} 32. Nd2 {[%clk 0:00:10]}  Qc6 {[%clk 0:00:48]} 33. Qd3 {[%clk 0:00:09]}  Kg8 {[%clk 0:00:45]} 34. d5 {[%clk 0:00:09]}  exd5 {[%clk 0:00:44]} 35. Qxd5 {[%clk 0:00:09]}  Qa6 {[%clk 0:00:34]} 36. Nc4 {[%clk 0:00:09]}  Bf8 {[%clk 0:00:34]} 37. e5 {[%clk 0:00:08]}  Kg7 {[%clk 0:00:31]} 38. Nd6 {[%clk 0:00:07]}  Qa7 {[%clk 0:00:26]} 39. Ne8+ {[%clk 0:00:05]}  Kg8 {[%clk 0:00:20]} 40. e6 {[%clk 0:00:04]}  fxe6 {[%clk 0:00:16]} 41. Qxe6+ {[%clk 0:00:04]}  Qf7 {[%clk 0:00:16]} 42. Qe4 {[%clk 0:00:01]}  Be7 {[%clk 0:00:12]} 43. Nc7 {[%clk 0:00:01]}  Bxh4 {[%clk 0:00:07]} 0-1


[Site "https://www.chess.com"]

[Event "Titled Tuesday Blitz November 15 Late 2022"]
[White "Badelka, Olga"]
[Black "Kaplan, Avi Harrison"]
[WhiteFideId "13509926"]
[BlackFideId "30934559"]
[WhiteElo "2337"]
[BlackElo "1983"]
[Result "0-1"]
[Round "11"]
[TimeControl "180+1"]
[Date "2022.11.16"]
[WhiteClock "0:00:01"]
[BlackClock "0:00:35"]

1. d4 {[%clk 0:02:56]}  Nf6 {[%clk 0:02:59]} 2. c4 {[%clk 0:02:56]}  e6 {[%clk 0:03:00]} 3. Nc3 {[%clk 0:02:56]}  c5 {[%clk 0:03:00]} 4. d5 {[%clk 0:02:55]}  exd5 {[%clk 0:03:01]} 5. cxd5 {[%clk 0:02:55]}  d6 {[%clk 0:03:00]} 6. e4 {[%clk 0:02:56]}  g6 {[%clk 0:03:01]} 7. Bb5+ {[%clk 0:02:55]}  Bd7 {[%clk 0:02:48]} 8. Bd3 {[%clk 0:02:50]}  Bg7 {[%clk 0:02:45]} 9. f4 {[%clk 0:02:47]}  O-O {[%clk 0:02:45]} 10. Nf3 {[%clk 0:02:45]}  Bg4 {[%clk 0:02:37]} 11. h3 {[%clk 0:02:42]}  Bxf3 {[%clk 0:02:36]} 12. Qxf3 {[%clk 0:02:42]}  Nbd7 {[%clk 0:02:37]} 13. O-O {[%clk 0:02:41]}  a6 {[%clk 0:02:36]} 14. a4 {[%clk 0:02:41]}  Qc7 {[%clk 0:02:37]} 15. Be3 {[%clk 0:02:31]}  c4 {[%clk 0:02:32]} 16. Bc2 {[%clk 0:02:28]}  Nc5 {[%clk 0:02:32]} 17. e5 {[%clk 0:02:07]}  Nfd7 {[%clk 0:02:17]} 18. Ne4 {[%clk 0:01:39]}  Nxe4 {[%clk 0:02:01]} 19. Bxe4 {[%clk 0:01:40]}  dxe5 {[%clk 0:01:56]} 20. f5 {[%clk 0:01:19]}  Nc5 {[%clk 0:01:56]} 21. Rad1 {[%clk 0:00:42]}  Rad8 {[%clk 0:01:38]} 22. Bc2 {[%clk 0:00:25]}  e4 {[%clk 0:01:34]} 23. Qg4 {[%clk 0:00:17]}  Nd7 {[%clk 0:01:11]} 24. d6 {[%clk 0:00:13]}  Qc6 {[%clk 0:01:10]} 25. Bxe4 {[%clk 0:00:12]}  Qxa4 {[%clk 0:01:06]} 26. fxg6 {[%clk 0:00:12]}  hxg6 {[%clk 0:00:58]} 27. Bxg6 {[%clk 0:00:12]}  fxg6 {[%clk 0:00:59]} 28. Qe6+ {[%clk 0:00:12]}  Kh7 {[%clk 0:00:59]} 29. Bd4 {[%clk 0:00:06]}  Rxf1+ {[%clk 0:00:54]} 30. Rxf1 {[%clk 0:00:05]}  Bxd4+ {[%clk 0:00:54]} 31. Kh1 {[%clk 0:00:06]}  Bg7 {[%clk 0:00:50]} 32. Qe7 {[%clk 0:00:04]}  Rf8 {[%clk 0:00:48]} 33. Re1 {[%clk 0:00:02]}  Qc6 {[%clk 0:00:46]} 34. Re6 {[%clk 0:00:01]}  Rf2 {[%clk 0:00:42]} 35. Qh4+ {[%clk 0:00:01]}  Kg8 {[%clk 0:00:41]} 36. Qxf2 {[%clk 0:00:02]}  Qd5 {[%clk 0:00:36]} 37. Re8+ {[%clk 0:00:02]}  Nf8 {[%clk 0:00:37]} 38. Qe3 {[%clk 0:00:01]}  Qd1+ {[%clk 0:00:35]} 0-1


[Site "https://www.chess.com"]

[Event "Titled Tuesday Blitz November 15 Late 2022"]
[White "Buchenau, Frank"]
[Black "D`Arruda, Ricardo D."]
[WhiteFideId "4604350"]
[BlackFideId "100692"]
[WhiteElo "2157"]
[BlackElo "2486"]
[Result "1/2-1/2"]
[Round "11"]
[TimeControl "180+1"]
[Date "2022.11.16"]
[WhiteClock "0:00:08"]
[BlackClock "0:00:16"]

1. e4 {[%clk 0:03:00]}  c5 {[%clk 0:02:54]} 2. Nf3 {[%clk 0:03:00]}  Nc6 {[%clk 0:02:54]} 3. Bb5 {[%clk 0:02:59]}  g6 {[%clk 0:02:53]} 4. Bxc6 {[%clk 0:02:59]}  dxc6 {[%clk 0:02:52]} 5. d3 {[%clk 0:02:59]}  c4 {[%clk 0:02:52]} 6. d4 {[%clk 0:02:45]}  Bg7 {[%clk 0:02:50]} 7. O-O {[%clk 0:02:44]}  Nf6 {[%clk 0:02:49]} 8. Qe2 {[%clk 0:02:41]}  b5 {[%clk 0:02:43]} 9. a4 {[%clk 0:02:37]}  a6 {[%clk 0:02:41]} 10. Bf4 {[%clk 0:02:28]}  O-O {[%clk 0:02:37]} 11. Nc3 {[%clk 0:02:18]}  Bg4 {[%clk 0:02:30]} 12. Rfd1 {[%clk 0:02:14]}  Qb6 {[%clk 0:02:27]} 13. h3 {[%clk 0:02:11]}  Bxf3 {[%clk 0:02:26]} 14. Qxf3 {[%clk 0:02:11]}  Rfd8 {[%clk 0:02:16]} 15. Be3 {[%clk 0:02:04]}  Qc7 {[%clk 0:02:12]} 16. e5 {[%clk 0:01:55]}  Nd5 {[%clk 0:02:09]} 17. Nxd5 {[%clk 0:01:53]}  cxd5 {[%clk 0:02:04]} 18. axb5 {[%clk 0:01:53]}  a5 {[%clk 0:02:00]} 19. b3 {[%clk 0:01:43]}  Rab8 {[%clk 0:01:53]} 20. e6 {[%clk 0:01:33]}  fxe6 {[%clk 0:01:37]} 21. Bf4 {[%clk 0:01:22]}  e5 {[%clk 0:01:37]} 22. dxe5 {[%clk 0:01:18]}  Bxe5 {[%clk 0:01:38]} 23. Bxe5 {[%clk 0:01:12]}  Qxe5 {[%clk 0:01:38]} 24. Rxa5 {[%clk 0:01:06]}  c3 {[%clk 0:01:31]} 25. b6 {[%clk 0:00:59]}  e6 {[%clk 0:01:31]} 26. Ra7 {[%clk 0:00:57]}  Qf5 {[%clk 0:01:25]} 27. Qxf5 {[%clk 0:00:51]}  gxf5 {[%clk 0:01:15]} 28. Rc7 {[%clk 0:00:34]}  d4 {[%clk 0:01:14]} 29. b7 {[%clk 0:00:33]}  e5 {[%clk 0:01:04]} 30. f3 {[%clk 0:00:30]}  e4 {[%clk 0:00:52]} 31. fxe4 {[%clk 0:00:27]}  fxe4 {[%clk 0:00:52]} 32. Kf2 {[%clk 0:00:26]}  d3 {[%clk 0:00:43]} 33. cxd3 {[%clk 0:00:23]}  exd3 {[%clk 0:00:44]} 34. Rxc3 {[%clk 0:00:18]}  Rxb7 {[%clk 0:00:43]} 35. Rcxd3 {[%clk 0:00:18]}  Rf8+ {[%clk 0:00:30]} 36. Kg1 {[%clk 0:00:18]}  Rf5 {[%clk 0:00:21]} 37. Rf1 {[%clk 0:00:16]}  Rfb5 {[%clk 0:00:20]} 38. Rff3 {[%clk 0:00:15]}  Kg7 {[%clk 0:00:21]} 39. Kf2 {[%clk 0:00:14]}  h6 {[%clk 0:00:22]} 40. Rg3+ {[%clk 0:00:14]}  Kf6 {[%clk 0:00:21]} 41. Rge3 {[%clk 0:00:14]}  Kf5 {[%clk 0:00:21]} 42. g4+ {[%clk 0:00:14]}  Kf4 {[%clk 0:00:21]} 43. Rd4+ {[%clk 0:00:14]}  Kg5 {[%clk 0:00:21]} 44. Rdd3 {[%clk 0:00:12]}  Kh4 {[%clk 0:00:21]} 45. Kg2 {[%clk 0:00:12]}  Rc7 {[%clk 0:00:21]} 46. Rf3 {[%clk 0:00:11]}  Rc2+ {[%clk 0:00:21]} 47. Rf2 {[%clk 0:00:11]}  Rc6 {[%clk 0:00:17]} 48. Kf1 {[%clk 0:00:10]}  Rcb6 {[%clk 0:00:17]} 49. Rff3 {[%clk 0:00:09]}  Rc6 {[%clk 0:00:17]} 50. Ke2 {[%clk 0:00:10]}  Rc2+ {[%clk 0:00:17]} 51. Rd2 {[%clk 0:00:09]}  Rc6 {[%clk 0:00:17]} 52. Rdd3 {[%clk 0:00:09]}  Rc2+ {[%clk 0:00:17]} 53. Rd2 {[%clk 0:00:10]}  Rc6 {[%clk 0:00:18]} 54. Kd1 {[%clk 0:00:10]}  Ra6 {[%clk 0:00:16]} 55. Rb2 {[%clk 0:00:09]}  Ra1+ {[%clk 0:00:16]} 56. Kc2 {[%clk 0:00:09]}  Rc5+ {[%clk 0:00:16]} 57. Rc3 {[%clk 0:00:09]}  Re5 {[%clk 0:00:16]} 58. b4 {[%clk 0:00:09]}  Rae1 {[%clk 0:00:16]} 59. b5 {[%clk 0:00:08]}  R1e2+ {[%clk 0:00:17]} 60. Kb1 {[%clk 0:00:08]}  Rxb2+ {[%clk 0:00:17]} 61. Kxb2 {[%clk 0:00:08]}  Rxb5+ {[%clk 0:00:18]} 62. Kc2 {[%clk 0:00:08]}  Ra5 {[%clk 0:00:15]} 63. Kd3 {[%clk 0:00:08]}  Ra2 {[%clk 0:00:15]} 64. Ke4 {[%clk 0:00:07]}  Rh2 {[%clk 0:00:16]} 65. Kf4 {[%clk 0:00:07]}  Rxh3 {[%clk 0:00:17]} 66. Rxh3+ {[%clk 0:00:07]}  Kxh3 {[%clk 0:00:18]} 67. g5 {[%clk 0:00:07]}  hxg5+ {[%clk 0:00:16]} 68. Kxg5 {[%clk 0:00:08]} 1/2-1/2


[Site "https://www.chess.com"]

[Event "Titled Tuesday Blitz November 15 Late 2022"]
[White "Chigaev, Maksim"]
[Black "Svane, Frederik"]
[WhiteFideId "4108116"]
[BlackFideId "12923044"]
[WhiteElo "2541"]
[BlackElo "2466"]
[Result "1-0"]
[Round "11"]
[TimeControl "180+1"]
[Date "2022.11.15"]
[WhiteClock "0:00:07"]
[BlackClock "0:00:03"]

1. Nf3 {[%clk 0:03:00]}  d5 {[%clk 0:03:00]} 2. c4 {[%clk 0:03:01]}  e6 {[%clk 0:02:59]} 3. g3 {[%clk 0:03:01]}  d4 {[%clk 0:02:59]} 4. Bg2 {[%clk 0:03:00]}  Nc6 {[%clk 0:02:59]} 5. O-O {[%clk 0:03:00]}  Bc5 {[%clk 0:02:59]} 6. d3 {[%clk 0:02:47]}  Nf6 {[%clk 0:02:59]} 7. Nbd2 {[%clk 0:02:47]}  a5 {[%clk 0:02:52]} 8. Nb3 {[%clk 0:02:47]}  Be7 {[%clk 0:02:52]} 9. e3 {[%clk 0:02:47]}  dxe3 {[%clk 0:02:52]} 10. Bxe3 {[%clk 0:02:47]}  O-O {[%clk 0:02:51]} 11. Bc5 {[%clk 0:02:44]}  a4 {[%clk 0:02:32]} 12. Bxe7 {[%clk 0:02:43]}  Qxe7 {[%clk 0:02:29]} 13. Nbd2 {[%clk 0:02:37]}  Rd8 {[%clk 0:02:25]} 14. Qe2 {[%clk 0:02:38]}  Qd6 {[%clk 0:02:03]} 15. d4 {[%clk 0:01:39]}  Nxd4 {[%clk 0:02:01]} 16. Nxd4 {[%clk 0:01:40]}  Qxd4 {[%clk 0:02:02]} 17. Rad1 {[%clk 0:01:35]}  Bd7 {[%clk 0:01:19]} 18. Ne4 {[%clk 0:00:51]}  Qe5 {[%clk 0:01:19]} 19. Nxf6+ {[%clk 0:00:47]}  Qxf6 {[%clk 0:01:20]} 20. Bxb7 {[%clk 0:00:41]}  Rab8 {[%clk 0:01:20]} 21. Be4 {[%clk 0:00:30]}  g6 {[%clk 0:01:12]} 22. Rd2 {[%clk 0:00:26]}  Be8 {[%clk 0:01:10]} 23. Rfd1 {[%clk 0:00:26]}  Rxd2 {[%clk 0:01:09]} 24. Rxd2 {[%clk 0:00:27]}  Qe5 {[%clk 0:01:01]} 25. h4 {[%clk 0:00:27]}  Kg7 {[%clk 0:00:55]} 26. Bf3 {[%clk 0:00:21]}  Qxe2 {[%clk 0:00:46]} 27. Bxe2 {[%clk 0:00:22]}  Bc6 {[%clk 0:00:41]} 28. f4 {[%clk 0:00:23]}  Re8 {[%clk 0:00:35]} 29. Kf2 {[%clk 0:00:14]}  e5 {[%clk 0:00:36]} 30. fxe5 {[%clk 0:00:15]}  Rxe5 {[%clk 0:00:37]} 31. Bd3 {[%clk 0:00:14]}  f5 {[%clk 0:00:34]} 32. b4 {[%clk 0:00:15]}  axb3 {[%clk 0:00:30]} 33. axb3 {[%clk 0:00:16]}  Ra5 {[%clk 0:00:29]} 34. b4 {[%clk 0:00:16]}  Ra3 {[%clk 0:00:29]} 35. b5 {[%clk 0:00:16]}  Be8 {[%clk 0:00:30]} 36. Ke3 {[%clk 0:00:12]}  Kf6 {[%clk 0:00:20]} 37. Kd4 {[%clk 0:00:13]}  h6 {[%clk 0:00:20]} 38. Re2 {[%clk 0:00:13]}  Bd7 {[%clk 0:00:20]} 39. Rb2 {[%clk 0:00:08]}  g5 {[%clk 0:00:19]} 40. hxg5+ {[%clk 0:00:09]}  hxg5 {[%clk 0:00:20]} 41. c5 {[%clk 0:00:10]}  Ra4+ {[%clk 0:00:16]} 42. Kd5 {[%clk 0:00:07]}  Ra3 {[%clk 0:00:14]} 43. Kd4 {[%clk 0:00:06]}  Ra4+ {[%clk 0:00:15]} 44. Kc3 {[%clk 0:00:06]}  Bc8 {[%clk 0:00:06]} 45. c6 {[%clk 0:00:05]}  f4 {[%clk 0:00:05]} 46. gxf4 {[%clk 0:00:05]}  gxf4 {[%clk 0:00:05]} 47. b6 {[%clk 0:00:06]}  cxb6 {[%clk 0:00:05]} 48. Rxb6 {[%clk 0:00:07]}  Ke5 {[%clk 0:00:06]} 49. Rb8 {[%clk 0:00:07]}  Be6 {[%clk 0:00:05]} 50. c7 {[%clk 0:00:06]}  Ra3+ {[%clk 0:00:02]} 51. Kd2 {[%clk 0:00:06]}  Ra2+ {[%clk 0:00:03]} 52. Bc2 {[%clk 0:00:05]}  f3 {[%clk 0:00:03]} 53. Re8 {[%clk 0:00:04]}  Rxc2+ {[%clk 0:00:01]} 54. Kxc2 {[%clk 0:00:04]}  f2 {[%clk 0:00:02]} 55. Rxe6+ {[%clk 0:00:05]}  Kxe6 {[%clk 0:00:01]} 56. c8=Q+ {[%clk 0:00:05]}  Kf6 {[%clk 0:00:02]} 57. Qc4 {[%clk 0:00:06]}  Ke5 {[%clk 0:00:01]} 58. Qf1 {[%clk 0:00:07]}  Ke4 {[%clk 0:00:02]} 59. Kd2 {[%clk 0:00:07]}  Kd5 {[%clk 0:00:03]} 60. Qxf2 {[%clk 0:00:07]} 1-0


[Site "https://www.chess.com"]

[Event "Titled Tuesday Blitz November 15 Late 2022"]
[White "Estrada Nieto, Julian"]
[Black "Tanenbaum, Zachary"]
[WhiteFideId "5101018"]
[BlackFideId "2060850"]
[WhiteElo "2221"]
[BlackElo "2175"]
[Result "0-1"]
[Round "11"]
[TimeControl "180+1"]
[Date "2022.11.15"]
[WhiteClock "0:00:03"]
[BlackClock "0:00:35"]

1. e4 {[%clk 0:03:00]}  e5 {[%clk 0:03:00]} 2. Nf3 {[%clk 0:03:01]}  Nc6 {[%clk 0:03:01]} 3. Bb5 {[%clk 0:03:01]}  a6 {[%clk 0:03:01]} 4. Ba4 {[%clk 0:03:01]}  d6 {[%clk 0:03:00]} 5. Bxc6+ {[%clk 0:03:00]}  bxc6 {[%clk 0:03:00]} 6. d4 {[%clk 0:03:01]}  exd4 {[%clk 0:03:01]} 7. Qxd4 {[%clk 0:02:59]}  c5 {[%clk 0:03:00]} 8. Qd3 {[%clk 0:02:59]}  Nf6 {[%clk 0:03:00]} 9. Nc3 {[%clk 0:02:58]}  Be7 {[%clk 0:03:00]} 10. e5 {[%clk 0:02:46]}  dxe5 {[%clk 0:02:59]} 11. Qxd8+ {[%clk 0:02:46]}  Bxd8 {[%clk 0:02:59]} 12. Nxe5 {[%clk 0:02:47]}  Be7 {[%clk 0:02:55]} 13. O-O {[%clk 0:02:23]}  O-O {[%clk 0:02:54]} 14. Bg5 {[%clk 0:02:11]}  Bf5 {[%clk 0:02:53]} 15. Nc6 {[%clk 0:02:05]}  Bd6 {[%clk 0:02:52]} 16. Bxf6 {[%clk 0:02:04]}  gxf6 {[%clk 0:02:52]} 17. Nd5 {[%clk 0:02:02]}  Kg7 {[%clk 0:02:52]} 18. Ne3 {[%clk 0:01:58]}  Be4 {[%clk 0:02:49]} 19. Na5 {[%clk 0:01:58]}  Rab8 {[%clk 0:02:32]} 20. Nac4 {[%clk 0:01:53]}  Rfe8 {[%clk 0:01:56]} 21. Rad1 {[%clk 0:01:50]}  Re6 {[%clk 0:01:45]} 22. f3 {[%clk 0:01:37]}  Bg6 {[%clk 0:01:45]} 23. f4 {[%clk 0:01:17]}  Be4 {[%clk 0:01:35]} 24. f5 {[%clk 0:01:15]}  Re7 {[%clk 0:01:34]} 25. b3 {[%clk 0:01:07]}  Rd8 {[%clk 0:01:12]} 26. Rd2 {[%clk 0:01:02]}  Bb7 {[%clk 0:01:05]} 27. Rfd1 {[%clk 0:00:57]}  Rde8 {[%clk 0:01:04]} 28. Nd5 {[%clk 0:00:41]}  Re1+ {[%clk 0:01:01]} 29. Kf2 {[%clk 0:00:38]}  Rxd1 {[%clk 0:00:59]} 30. Rxd1 {[%clk 0:00:38]}  Be5 {[%clk 0:00:55]} 31. Nxe5 {[%clk 0:00:24]}  Rxe5 {[%clk 0:00:56]} 32. Ne3 {[%clk 0:00:24]}  Be4 {[%clk 0:00:52]} 33. g4 {[%clk 0:00:20]}  Bc6 {[%clk 0:00:46]} 34. Rd8 {[%clk 0:00:19]}  Re4 {[%clk 0:00:43]} 35. Rc8 {[%clk 0:00:16]}  Rf4+ {[%clk 0:00:42]} 36. Ke2 {[%clk 0:00:16]}  Bf3+ {[%clk 0:00:41]} 37. Kd3 {[%clk 0:00:15]}  Bxg4 {[%clk 0:00:41]} 38. Rxc7 {[%clk 0:00:13]}  Bxf5+ {[%clk 0:00:40]} 39. Nxf5+ {[%clk 0:00:10]}  Rxf5 {[%clk 0:00:41]} 40. Kc4 {[%clk 0:00:10]}  Rf2 {[%clk 0:00:41]} 41. c3 {[%clk 0:00:10]}  Rxh2 {[%clk 0:00:39]} 42. Rxc5 {[%clk 0:00:09]}  Rxa2 {[%clk 0:00:39]} 43. b4 {[%clk 0:00:09]}  Kg6 {[%clk 0:00:38]} 44. Rc8 {[%clk 0:00:09]}  h5 {[%clk 0:00:37]} 45. Rh8 {[%clk 0:00:07]}  f5 {[%clk 0:00:36]} 46. Kc5 {[%clk 0:00:05]}  f4 {[%clk 0:00:37]} 47. Rg8+ {[%clk 0:00:04]}  Kf5 {[%clk 0:00:36]} 48. Rg7 {[%clk 0:00:04]}  f6 {[%clk 0:00:35]} 49. c4 {[%clk 0:00:03]}  f3 {[%clk 0:00:35]} 50. Rg1 {[%clk 0:00:03]}  f2 {[%clk 0:00:35]} 51. Rf1 {[%clk 0:00:03]}  Kg4 {[%clk 0:00:35]} 0-1


[Site "https://www.chess.com"]

[Event "Titled Tuesday Blitz November 15 Late 2022"]
[White "Gonzalez, Francisco Silva"]
[Black "Liu, Kelsey"]
[WhiteFideId "1512285"]
[BlackFideId "30944481"]
[WhiteElo "2159"]
[BlackElo "2299"]
[Result "0-1"]
[Round "11"]
[TimeControl "180+1"]
[Date "2022.11.16"]
[WhiteClock "0:01:03"]
[BlackClock "0:00:11"]

1. d4 {[%clk 0:03:00]}  Nf6 {[%clk 0:02:59]} 2. c4 {[%clk 0:03:00]}  e6 {[%clk 0:02:59]} 3. Nc3 {[%clk 0:03:00]}  Bb4 {[%clk 0:02:59]} 4. a3 {[%clk 0:03:00]}  Bxc3+ {[%clk 0:02:57]} 5. bxc3 {[%clk 0:03:00]}  Nc6 {[%clk 0:02:43]} 6. e3 {[%clk 0:02:59]}  O-O {[%clk 0:02:37]} 7. Bd3 {[%clk 0:02:59]}  e5 {[%clk 0:02:31]} 8. Ne2 {[%clk 0:02:57]}  e4 {[%clk 0:02:26]} 9. Bc2 {[%clk 0:02:56]}  b6 {[%clk 0:02:22]} 10. Ng3 {[%clk 0:02:54]}  Ba6 {[%clk 0:02:17]} 11. Nxe4 {[%clk 0:02:53]}  Nxe4 {[%clk 0:02:14]} 12. Bxe4 {[%clk 0:02:53]}  Bxc4 {[%clk 0:02:13]} 13. Bxc6 {[%clk 0:02:54]}  dxc6 {[%clk 0:02:12]} 14. f3 {[%clk 0:02:54]}  c5 {[%clk 0:02:04]} 15. Kf2 {[%clk 0:02:51]}  Qe7 {[%clk 0:01:52]} 16. e4 {[%clk 0:02:46]}  Rad8 {[%clk 0:01:48]} 17. Be3 {[%clk 0:02:46]}  cxd4 {[%clk 0:01:46]} 18. cxd4 {[%clk 0:02:44]}  c5 {[%clk 0:01:47]} 19. Qd2 {[%clk 0:02:34]}  cxd4 {[%clk 0:01:44]} 20. Bxd4 {[%clk 0:02:35]}  Qd7 {[%clk 0:01:32]} 21. Rhd1 {[%clk 0:02:33]}  Bb3 {[%clk 0:01:31]} 22. Qg5 {[%clk 0:02:29]}  f6 {[%clk 0:01:20]} 23. Bxf6 {[%clk 0:02:29]}  Bxd1 {[%clk 0:01:13]} 24. Rxd1 {[%clk 0:02:27]}  Rxf6 {[%clk 0:00:59]} 25. Rxd7 {[%clk 0:02:25]}  Rxd7 {[%clk 0:01:00]} 26. e5 {[%clk 0:02:25]}  Rc6 {[%clk 0:00:50]} 27. Qf5 {[%clk 0:02:22]}  Rd2+ {[%clk 0:00:45]} 28. Ke3 {[%clk 0:02:22]}  Rxg2 {[%clk 0:00:36]} 29. e6 {[%clk 0:02:22]}  Rc7 {[%clk 0:00:25]} 30. Qd5 {[%clk 0:02:13]}  Rc3+ {[%clk 0:00:08]} 31. Ke4 {[%clk 0:02:03]}  Re2+ {[%clk 0:00:07]} 32. Kf4 {[%clk 0:02:04]}  g5+ {[%clk 0:00:05]} 33. Kg3 {[%clk 0:02:03]}  Rc8 {[%clk 0:00:02]} 34. Qxg5+ {[%clk 0:02:00]}  Kf8 {[%clk 0:00:03]} 35. Qf6+ {[%clk 0:01:59]}  Kg8 {[%clk 0:00:01]} 36. Qf7+ {[%clk 0:01:59]}  Kh8 {[%clk 0:00:02]} 37. Qf6+ {[%clk 0:01:55]}  Kg8 {[%clk 0:00:02]} 38. Qg5+ {[%clk 0:01:55]}  Kh8 {[%clk 0:00:02]} 39. e7 {[%clk 0:01:39]}  Rg8 {[%clk 0:00:01]} 40. Qxg8+ {[%clk 0:01:32]}  Kxg8 {[%clk 0:00:02]} 41. f4 {[%clk 0:01:32]}  Rxe7 {[%clk 0:00:03]} 42. f5 {[%clk 0:01:05]}  Kf7 {[%clk 0:00:04]} 43. f6 {[%clk 0:01:06]}  Rc7 {[%clk 0:00:04]} 44. Kf4 {[%clk 0:01:05]}  Rc3 {[%clk 0:00:05]} 45. Ke5 {[%clk 0:01:05]}  Rxa3 {[%clk 0:00:06]} 46. Kd5 {[%clk 0:01:04]}  Rf3 {[%clk 0:00:06]} 47. Kc6 {[%clk 0:01:04]}  Rxf6+ {[%clk 0:00:07]} 48. Kb5 {[%clk 0:01:04]}  a5 {[%clk 0:00:08]} 49. Ka4 {[%clk 0:01:04]}  b5+ {[%clk 0:00:08]} 50. Kxb5 {[%clk 0:01:04]}  Rf5+ {[%clk 0:00:09]} 51. Ka4 {[%clk 0:01:04]}  Kg6 {[%clk 0:00:09]} 52. h3 {[%clk 0:01:04]}  Kg5 {[%clk 0:00:10]} 53. h4+ {[%clk 0:01:04]}  Kxh4 {[%clk 0:00:11]} 54. Kb3 {[%clk 0:01:03]}  Kg4 {[%clk 0:00:11]} 0-1


[Site "https://www.chess.com"]